[Event "Reykjavik Chess Congress 2019"]
[Site "Reykjavik"]
[Date "2019.01.20"]
[Round "5"]
[White "Stefansson, Vignir Vatnar"]
[Black "Ingvason, Johann"]
[Result "1-0"]
[ECO "A57"]
[WhiteElo "2248"]
[BlackElo "2175"]
[Annotator "ChessBase"]
[PlyCount "74"]
[EventDate "2019.01.09"]
[EventType "swiss"]
[EventCountry "ISL"]
[SourceTitle "playchess.com"]
[Source "ChessBase"]
[SourceQuality "1"]
[TimeControl "40/5400+30:900+30"]

1. d4 {[%emt 0:00:00]} Nf6 {[%emt 0:00:00]} 2. c4 {[%emt 0:00:00]} c5 {[%emt 0:00:00]} 3. d5 {[%emt 0:00:00]} b5 {[%emt 0:00:00]} 4. cxb5 {[%emt 0:00:02]} a6 {[%emt 0:00:03]} 5. Nc3 {[%emt 0:03:30]} g6 {[%emt 0:02:50]} 6. e4 {[%emt 0:06:20]} d6 {[%emt 0:02:56]} 7. Nf3 {[%emt 0:05:04]} Bg7 {[%emt 0:03:03]} 8. Be2 {[%emt 0:12:33]} O-O {[%emt 0:03:27]} 9. O-O {[%emt 0:04:22]} axb5 {[%emt 0:10:34]} 10. Bxb5 {[%emt 0:00:06]} Qa5 {[%emt 0:00:23]} 11. Nd2 {[%emt 0:01:14]} Ba6 {[%emt 0:02:14]} 12. Nc4 {[%emt 0:02:25]} Qc7 {[%emt 0:00:23]} 13. Qe2 {[%emt 0:05:09]} Nbd7 {[%emt 0:13:50]} 14. Bd2 {[%emt 0:03:40]} Nh5 {[%emt 0:16:17]} 15. a4 {[%emt 0:01:28]} Bd4 {[%emt 0:13:37]} 16. Bxa6 {[%emt 0:05:48]} Rxa6 {[%emt 0:00:43]} 17. Nb5 {[%emt 0:00:05]} Qb7 {[%emt 0:06:09]} 18. Nxd4 {[%emt 0:02:22]} cxd4 {[%emt 0:00:02]} 19. b4 {[%emt 0:00:20]} Ne5 {[%emt 0:00:21]} 20. Nxe5 {[%emt 0:03:41]} dxe5 {[%emt 0:00:03]} 21. b5 {[%emt 0:00:10]} Rb6 {[%emt 0:03:09]} 22. Rfb1 {[%emt 0:02:12]} Rb8 {[%emt 0:00:06]} 23. Rb3 {[%emt 0:04:54]} f5 {[%emt 0:02:44]} 24. f3 {[%emt 0:07:13]} fxe4 {[%emt 0:04:54]} 25. fxe4 {[%emt 0:00:18]} Rf6 {[%emt 0:02:15]} 26. a5 {[%emt 0:01:28]} Qa7 {[%emt 0:03:49]} 27. Qd3 {[%emt 0:00:20]} Qa8 {[%emt 0:01:36]} 28. Bg5 {[%emt 0:01:49]} Nf4 {[%emt 0:00:36]} 29. Bxf4 {[%emt 0:00:07]} Rxf4 {[%emt 0:00:13]} 30. b6 {[%emt 0:03:33]} Rf6 {[%emt 0:04:03]} 31. Rbb1 {[%emt 0:00:12]} Kg7 {[%emt 0:00:38]} 32. Qb5 {[%emt 0:00:40]} h5 {[%emt 0:01:01]} 33. Rc1 {[%emt 0:00:43]} Rb7 {[%emt 0:01:11]} 34. Rc6 {[%emt 0:03:36]} Rf4 {[%emt 0:00:09]} 35. a6 {[%emt 0:01:21]} Rxe4 {[%emt 0:01:02]} 36. Qb1 {[%emt 0:00:18]} d3 {[%emt 0:01:42]} 37. axb7 {[%emt 0:00:52]} Ra4 {[%emt 0:01:49]} 1-0

[Event "Reykjavik Chess Congress 2019"]
[Site "Reykjavik"]
[Date "2019.01.20"]
[Round "5"]
[White "Ptacnikova, Lenka"]
[Black "Gretarsson, Hjorvar Steinn"]
[Result "0-1"]
[ECO "A20"]
[WhiteElo "2187"]
[BlackElo "2560"]
[Annotator "ChessBase"]
[PlyCount "132"]
[EventDate "2019.01.09"]
[EventType "swiss"]
[EventCountry "ISL"]
[SourceTitle "playchess.com"]
[Source "ChessBase"]
[SourceQuality "1"]
[TimeControl "40/5400+30:900+30"]

1. c4 {[%emt 0:00:00]} e5 {[%emt 0:04:13]} 2. g3 {[%emt 0:00:18]} Nc6 {[%emt 0:00:50]} 3. Bg2 {[%emt 0:00:17]} Bc5 {[%emt 0:00:05]} 4. Nc3 {[%emt 0:01:13]} d6 {[%emt 0:01:03]} 5. e3 {[%emt 0:00:50]} a6 {[%emt 0:00:05]} 6. Nge2 {[%emt 0:00:23]} Ba7 {[%emt 0:00:18]} 7. O-O {[%emt 0:00:47]} h5 {[%emt 0:00:35]} 8. d4 {[%emt 0:00:18]} h4 {[%emt 0:03:15]} 9. b4 {[%emt 0:06:03]} Qg5 {[%emt 0:22:12]} 10. b5 {[%emt 0:22:05]} axb5 {[%emt 0:01:23]} 11. cxb5 {[%emt 0:04:00]} Nce7 {[%emt 0:01:13]} 12. f3 {[%emt 0:10:13]} hxg3 {[%emt 0:03:04]} 13. hxg3 {[%emt 0:00:03]} Nf6 {[%emt 0:03:01]} 14. Kf2 {[%emt 0:00:28]} e4 {[%emt 0:05:24]} 15. Nxe4 {[%emt 0:10:23]} Nxe4+ {[%emt 0:00:24]} 16. fxe4 {[%emt 0:00:02]} Bg4 {[%emt 0:02:04]} 17. Qd3 {[%emt 0:09:42]} Rh2 {[%emt 0:05:47]} 18. Bb2 {[%emt 0:07:18]} Bh3 {[%emt 0:06:00]} 19. Rg1 {[%emt 0:00:07]} Qf6+ {[%emt 0:04:49]} 20. Nf4 {[%emt 0:00:06]} g5 {[%emt 0:00:45]} 21. e5 {[%emt 0:00:07]} dxe5 {[%emt 0:00:43]} 22. dxe5 {[%emt 0:00:31]} Qf5 {[%emt 0:01:19]} 23. Qxf5 {[%emt 0:10:08]} Nxf5 {[%emt 0:20:34]} 24. Nxh3 {[%emt 0:04:25]} Bxe3+ {[%emt 0:04:13]} 25. Kf3 {[%emt 0:00:20]} g4+ {[%emt 0:01:04]} 26. Kxg4 {[%emt 0:00:34]} Bxg1 {[%emt 0:00:18]} 27. Bxb7 {[%emt 0:02:14]} Nh6+ {[%emt 0:01:19]} 28. Kg5 {[%emt 0:09:41]} Ra4 {[%emt 0:04:18]} 29. Nf4 {[%emt 0:01:00]} Bc5 {[%emt 0:00:32]} 30. Bc6+ {[%emt 0:00:47]} Kf8 {[%emt 0:00:44]} 31. e6 {[%emt 0:00:13]} Be7+ {[%emt 0:02:42]} 32. Bf6 {[%emt 0:00:05]} Ra3 {[%emt 0:00:06]} 33. Rg1 {[%emt 0:01:02]} Bxf6+ {[%emt 0:00:55]} 34. Kxf6 {[%emt 0:00:05]} Ng8+ {[%emt 0:00:09]} 35. Ke5 {[%emt 0:00:22]} Ne7 {[%emt 0:00:42]} 36. exf7 {[%emt 0:00:13]} Kxf7 {[%emt 0:00:46]} 37. Be4 {[%emt 0:00:34]} Rhxa2 {[%emt 0:00:40]} 38. Nd5 {[%emt 0:00:59]} Re2 {[%emt 0:00:52]} 39. Rf1+ {[%emt 0:00:21]} Ke8 {[%emt 0:00:09]} 40. Nxc7+ {[%emt 0:00:00]} Kd7 {[%emt 0:00:00]} 41. Na6 {[%emt 0:01:18]} Rxg3 {[%emt 0:05:28]} 42. Rd1+ {[%emt 0:07:16]} Ke8 {[%emt 0:00:09]} 43. Nc7+ {[%emt 0:01:31]} Kf7 {[%emt 0:00:15]} 44. Rf1+ {[%emt 0:00:35]} Kg8 {[%emt 0:00:48]} 45. Ne6 {[%emt 0:02:32]} Ng6+ {[%emt 0:01:43]} 46. Kd4 {[%emt 0:03:07]} Rg4 {[%emt 0:02:35]} 47. Nc5 {[%emt 0:00:23]} Rb2 {[%emt 0:01:33]} 48. Rf6 {[%emt 0:01:43]} Ne7 {[%emt 0:01:40]} 49. b6 {[%emt 0:01:23]} Rb4+ {[%emt 0:01:00]} 50. Kc3 {[%emt 0:01:16]} Rgxe4 {[%emt 0:00:22]} 51. Nxe4 {[%emt 0:00:08]} Nd5+ {[%emt 0:00:05]} 52. Kd3 {[%emt 0:00:11]} Nxf6 {[%emt 0:00:10]} 53. Nxf6+ {[%emt 0:00:04]} Kf7 {[%emt 0:00:10]} 54. Nd5 {[%emt 0:00:06]} Rb1 {[%emt 0:00:14]} 55. Kc4 {[%emt 0:00:25]} Ke6 {[%emt 0:00:07]} 56. Nb4 {[%emt 0:00:31]} Kd7 {[%emt 0:01:12]} 57. Kc5 {[%emt 0:00:27]} Kc8 {[%emt 0:00:55]} 58. Nc6 {[%emt 0:00:39]} Kb7 {[%emt 0:00:08]} 59. Na5+ {[%emt 0:00:20]} Ka6 {[%emt 0:00:16]} 60. Nc4 {[%emt 0:00:09]} Rc1 {[%emt 0:01:29]} 61. Kb4 {[%emt 0:00:08]} Rh1 {[%emt 0:00:50]} 62. Kc5 {[%emt 0:00:07]} Rh5+ {[%emt 0:00:09]} 63. Kc6 {[%emt 0:00:31]} Rb5 {[%emt 0:00:06]} 64. Kc7 {[%emt 0:02:34]} Rc5+ {[%emt 0:00:11]} 65. Kb8 {[%emt 0:00:04]} Rxc4 {[%emt 0:00:17]} 66. b7 {[%emt 0:00:05]} Kb6 0-1

[Event "Reykjavik Chess Congress 2019"]
[Site "Reykjavik"]
[Date "2019.01.27"]
[Round "7"]
[White "Stefansson, Vignir Vatnar"]
[Black "Kjartansson, David"]
[Result "1-0"]
[ECO "A50"]
[WhiteElo "2248"]
[BlackElo "2403"]
[Annotator "NA"]
[PlyCount "81"]
[EventDate "2019.01.09"]
[EventType "swiss"]
[EventCountry "ISL"]
[SourceTitle "playchess.com"]
[Source "ChessBase"]
[SourceQuality "1"]
[TimeControl "40/5400+30:900+30"]

1. c4 {[%emt 0:00:00]} b6 {[%emt 0:06:11]} 2. d4 {[%emt 0:00:37]} Nf6 {[%emt 0:00:27]} 3. Nf3 {[%emt 0:00:47]} Bb7 {[%emt 0:00:19]} 4. g3 {[%emt 0:00:19]} g6 {[%emt 0:10:28]} 5. Bg2 {[%emt 0:01:24]} Bg7 {[%emt 0:00:07]} 6. d5 {[%emt 0:04:19]} O-O {[%emt 0:03:48]} 7. Nc3 {[%emt 0:00:49]} c6 {[%emt 0:10:42]} 8. O-O {[%emt 0:02:15]} cxd5 {[%emt 0:00:28]} 9. cxd5 {[%emt 0:00:06]} Na6 {[%emt 0:07:34]} 10. e4 {[%emt 0:12:15]} d6 {[%emt 0:00:16]} 11. e5 {[%emt 0:04:06]} dxe5 {[%emt 0:11:25]} 12. Nxe5 {[%emt 0:00:12]} Rc8 {[%emt 0:00:34]} 13. a3 {[%emt 0:03:44]} Rxc3 {[%emt 0:15:33]} 14. bxc3 {[%emt 0:01:15]} Nxd5 {[%emt 0:01:21]} 15. Re1 {[%emt 0:03:36]} Qa8 {[%emt 0:09:10]} 16. c4 {[%emt 0:05:22]} Ndc7 {[%emt 0:02:53]} 17. Bxb7 {[%emt 0:00:52]} Qxb7 {[%emt 0:00:05]} 18. Bb2 {[%emt 0:01:08]} Ne6 {[%emt 0:06:27]} 19. Qd5 {[%emt 0:02:32]} Nac5 {[%emt 0:06:16]} 20. Rad1 {[%emt 0:04:52]} Qc7 {[%emt 0:01:19]} 21. Qf3 {[%emt 0:01:59]} f6 {[%emt 0:00:39]} 22. Nc6 {[%emt 0:02:56]} Ng5 {[%emt 0:00:54]} 23. Qg2 {[%emt 0:01:24]} e5 {[%emt 0:00:22]} 24. Qd5+ {[%emt 0:00:48]} Kh8 {[%emt 0:01:38]} 25. h4 {[%emt 0:02:24]} Nge6 {[%emt 0:00:32]} 26. Qd6 {[%emt 0:04:45]} Qf7 {[%emt 0:00:49]} 27. Qe7 {[%emt 0:03:36]} Qxe7 {[%emt 0:00:52]} 28. Nxe7 {[%emt 0:00:06]} e4 {[%emt 0:00:19]} 29. h5 {[%emt 0:03:01]} Rf7 {[%emt 0:00:49]} 30. Nc6 {[%emt 0:03:24]} Rc7 {[%emt 0:02:01]} 31. Nd4 {[%emt 0:05:27]} f5 {[%emt 0:00:28]} 32. h6 {[%emt 0:00:34]} Bxd4 {[%emt 0:00:31]} 33. Bxd4+ {[%emt 0:00:01]} Nxd4 {[%emt 0:00:32]} 34. Rxd4 {[%emt 0:00:02]} Kg8 {[%emt 0:00:10]} 35. Red1 {[%emt 0:03:00]} Kf7 {[%emt 0:00:17]} 36. Rd8 {[%emt 0:02:00]} Kf6 {[%emt 0:00:20]} 37. Rg8 {[%emt 0:01:57]} Nd3 {[%emt 0:00:27]} 38. f4 {[%emt 0:01:42]} Rxc4 {[%emt 0:01:19]} 39. Rg7 {[%emt 0:00:36]} Ra4 {[%emt 0:00:31]} 40. Rxh7 {[%emt 0:00:00]} g5 {[%emt 0:00:00]} 41. Rc7 {[%emt 0:01:02]} 1-0

[Event "Reykjavik Chess Congress 2019"]
[Site "Reykjavik"]
[Date "2019.01.30"]
[Round "8"]
[White "Olafsson, Thorvardur"]
[Black "Ptacnikova, Lenka"]
[Result "1/2-1/2"]
[ECO "A45"]
[WhiteElo "2199"]
[BlackElo "2187"]
[Annotator "RC"]
[PlyCount "122"]
[EventDate "2019.01.09"]
[EventType "swiss"]
[EventCountry "ISL"]
[SourceTitle "playchess.com"]
[Source "ChessBase"]
[SourceQuality "1"]
[TimeControl "40/5400+30:900+30"]

1. d4 {[%emt 0:01:40]} Nf6 {[%emt 0:00:00]} 2. g3 {[%emt 0:01:34]} d5 {[%emt 0:03:04]} 3. Bg2 {[%emt 0:00:57]} c5 {[%emt 0:00:48]} 4. Nf3 {[%emt 0:00:55]} cxd4 {[%emt 0:00:23]} 5. O-O {[%emt 0:03:55]} e6 {[%emt 0:17:36]} 6. Nxd4 {[%emt 0:06:15]} e5 {[%emt 0:01:52]} 7. Nb3 {[%emt 0:02:47]} Be7 {[%emt 0:00:19]} 8. Bg5 {[%emt 0:04:18]} d4 {[%emt 0:09:04]} 9. c3 {[%emt 0:11:15]} h6 {[%emt 0:05:34]} 10. Bc1 {[%emt 0:10:27]} Nc6 {[%emt 0:06:37]} 11. cxd4 {[%emt 0:08:41]} Nxd4 {[%emt 0:04:12]} 12. Nxd4 {[%emt 0:04:48]} exd4 {[%emt 0:00:46]} 13. Qa4+ {[%emt 0:01:50]} Qd7 {[%emt 0:00:07]} 14. Qxd7+ {[%emt 0:00:17]} Nxd7 {[%emt 0:00:52]} 15. Rd1 {[%emt 0:01:54]} Bf6 {[%emt 0:01:35]} 16. Na3 {[%emt 0:03:06]} O-O {[%emt 0:02:20]} 17. Nb5 {[%emt 0:00:52]} Ne5 {[%emt 0:01:19]} 18. Nc7 {[%emt 0:10:05]} d3 {[%emt 0:06:42]} 19. Nxa8 {[%emt 0:11:20]} dxe2 {[%emt 0:00:03]} 20. Re1 {[%emt 0:00:11]} Bg4 {[%emt 0:00:12]} 21. Nc7 {[%emt 0:01:11]} Nd3 {[%emt 0:05:39]} 22. Rxe2 {[%emt 0:09:55]} Bxe2 {[%emt 0:00:19]} 23. Nd5 {[%emt 0:01:32]} Bd4 {[%emt 0:05:55]} 24. Be3 {[%emt 0:00:30]} Bxb2 {[%emt 0:04:23]} 25. Rb1 {[%emt 0:00:00]} b6 {[%emt 0:03:24]} 26. Nf4 {[%emt 0:01:31]} Nxf4 {[%emt 0:00:22]} 27. Rxb2 {[%emt 0:00:19]} Nxg2 {[%emt 0:00:11]} 28. Kxg2 {[%emt 0:00:59]} Bd3 {[%emt 0:00:28]} 29. Rd2 {[%emt 0:00:22]} Rd8 {[%emt 0:00:15]} 30. f3 {[%emt 0:00:36]} Kf8 {[%emt 0:02:53]} 31. Kf2 {[%emt 0:00:06]} Ke7 {[%emt 0:00:42]} 32. h4 {[%emt 0:00:48]} Rd5 {[%emt 0:01:12]} 33. Bf4 {[%emt 0:00:32]} b5 {[%emt 0:00:51]} 34. Ke3 {[%emt 0:00:28]} Bc4 {[%emt 0:00:24]} 35. Rxd5 {[%emt 0:00:08]} Bxd5 {[%emt 0:00:08]} 36. a3 {[%emt 0:00:24]} a5 {[%emt 0:01:37]} 37. Bc7 {[%emt 0:00:36]} a4 {[%emt 0:00:38]} 38. Ba5 {[%emt 0:00:05]} Ke6 {[%emt 0:00:38]} 39. Bc3 {[%emt 0:00:22]} g6 {[%emt 0:00:11]} 40. Bb4 {[%emt 0:00:00]} h5 {[%emt 0:00:00]} 41. Bc3 {[%emt 0:01:26]} Kf5 {[%emt 0:00:19]} 42. Kf2 {[%emt 0:01:29]} Bb3 {[%emt 0:00:27]} 43. Ke3 {[%emt 0:00:12]} Bd1 {[%emt 0:00:09]} 44. Kf2 {[%emt 0:00:33]} Ke6 {[%emt 0:00:10]} 45. Ke3 {[%emt 0:00:13]} Kd5 {[%emt 0:00:03]} 46. Bb4 {[%emt 0:00:23]} Kc4 {[%emt 0:00:05]} 47. Be7 {[%emt 0:00:21]} Kd5 {[%emt 0:00:12]} 48. Bb4 {[%emt 0:00:07]} Ke5 {[%emt 0:00:09]} 49. Bc3+ {[%emt 0:00:16]} Kf5 {[%emt 0:00:03]} 50. Bb4 {[%emt 0:00:30]} g5 {[%emt 0:00:07]} 51. Bf8 {[%emt 0:05:43]} f6 {[%emt 0:00:22]} 52. Bb4 {[%emt 0:01:27]} Bb3 {[%emt 0:00:28]} 53. g4+ {[%emt 0:01:30]} hxg4 {[%emt 0:00:19]} 54. fxg4+ {[%emt 0:00:07]} Kxg4 {[%emt 0:00:11]} 55. hxg5 {[%emt 0:00:05]} fxg5 {[%emt 0:00:16]} 56. Kf2 {[%emt 0:00:05]} Kh3 {[%emt 0:00:48]} 57. Kg1 {[%emt 0:00:07]} g4 {[%emt 0:00:09]} 58. Bc5 {[%emt 0:00:04]} g3 {[%emt 0:00:18]} 59. Bd6 {[%emt 0:00:04]} Bd5 {[%emt 0:00:24]} 60. Be7 {[%emt 0:00:07]} Kg4 {[%emt 0:00:15]} 61. Bf8 {[%emt 0:00:07]} Kf3 1/2-1/2

[Event "Reykjavik Chess Congress 2019"]
[Site "Reykjavik"]
[Date "2019.01.30"]
[Round "8"]
[White "Viglundsson, Bjorgvin"]
[Black "Stefansson, Vignir Vatnar"]
[Result "1/2-1/2"]
[ECO "A25"]
[WhiteElo "2092"]
[BlackElo "2248"]
[Annotator "RC"]
[PlyCount "83"]
[EventDate "2019.01.09"]
[EventType "swiss"]
[EventCountry "ISL"]
[SourceTitle "playchess.com"]
[Source "ChessBase"]
[SourceQuality "1"]
[TimeControl "40/5400+30:900+30"]

1. c4 {[%emt 0:00:00]} e5 {[%emt 0:01:33]} 2. Nc3 {[%emt 0:00:16]} Nc6 {[%emt 0:00:08]} 3. g3 {[%emt 0:00:33]} h5 {[%emt 0:01:10]} 4. Nf3 {[%emt 0:01:43]} Be7 {[%emt 0:00:35]} 5. d4 {[%emt 0:01:35]} exd4 {[%emt 0:02:25]} 6. Nxd4 {[%emt 0:03:00]} h4 {[%emt 0:01:44]} 7. Nxc6 {[%emt 0:01:13]} dxc6 {[%emt 0:00:25]} 8. Qxd8+ {[%emt 0:00:37]} Bxd8 {[%emt 0:01:06]} 9. Bg2 {[%emt 0:05:34]} h3 {[%emt 0:06:56]} 10. Bf3 {[%emt 0:01:07]} Be6 {[%emt 0:06:25]} 11. b3 {[%emt 0:00:43]} Bf6 {[%emt 0:00:19]} 12. Bd2 {[%emt 0:01:58]} g5 {[%emt 0:07:57]} 13. O-O-O {[%emt 0:04:06]} g4 {[%emt 0:00:44]} 14. Be4 {[%emt 0:00:08]} O-O-O {[%emt 0:04:11]} 15. Kc2 {[%emt 0:02:18]} Ne7 {[%emt 0:00:23]} 16. Bd3 {[%emt 0:08:37]} Bd4 {[%emt 0:01:55]} 17. Rhf1 {[%emt 0:05:56]} Rhe8 {[%emt 0:08:00]} 18. Ne4 {[%emt 0:05:23]} Bf5 {[%emt 0:02:49]} 19. Bg5 {[%emt 0:05:30]} Bg6 {[%emt 0:04:57]} 20. Nf6 {[%emt 0:04:36]} Bxf6 {[%emt 0:03:00]} 21. Bxf6 {[%emt 0:00:09]} Bxd3+ {[%emt 0:06:20]} 22. Rxd3 {[%emt 0:01:13]} Rxd3 {[%emt 0:01:06]} 23. Kxd3 {[%emt 0:00:06]} Nf5 {[%emt 0:01:56]} 24. e4 {[%emt 0:05:32]} Nh6 {[%emt 0:05:40]} 25. e5 {[%emt 0:13:54]} Ng8 {[%emt 0:03:35]} 26. f3 {[%emt 0:00:56]} gxf3 {[%emt 0:03:12]} 27. Rxf3 {[%emt 0:00:44]} Nh6 {[%emt 0:00:05]} 28. Rf4 {[%emt 0:11:08]} Rg8 {[%emt 0:00:06]} 29. Rh4 {[%emt 0:02:56]} Ng4 {[%emt 0:00:07]} 30. Ke4 {[%emt 0:01:03]} Kd7 {[%emt 0:03:16]} 31. Kf5 {[%emt 0:00:46]} Ne3+ {[%emt 0:00:09]} 32. Ke4 {[%emt 0:01:04]} Ng4 {[%emt 0:00:32]} 33. Kf4 {[%emt 0:01:29]} Nxh2 {[%emt 0:00:23]} 34. Rxh3 {[%emt 0:00:39]} Ng4 {[%emt 0:00:10]} 35. Bh8 {[%emt 0:02:27]} Ke6 {[%emt 0:01:55]} 36. Rh4 {[%emt 0:00:33]} Nf2 {[%emt 0:00:21]} 37. Rh6+ {[%emt 0:01:21]} Rg6 {[%emt 0:01:08]} 38. Rxg6+ {[%emt 0:03:55]} fxg6 {[%emt 0:00:02]} 39. g4 {[%emt 0:00:57]} Nh3+ {[%emt 0:01:11]} 40. Kg3 {[%emt 0:00:00]} Ng5 {[%emt 0:00:00]} 41. Kf4 {[%emt 0:01:11]} Nh3+ {[%emt 0:00:27]} 42. Ke4 {Kxe5+} 1/2-1/2

[Event "Reykjavik Chess Congress 2019"]
[Site "Reykjavik"]
[Date "2019.01.30"]
[Round "8"]
[White "Jonsson, Gauti Pall"]
[Black "Bjornsson, Sigurbjorn"]
[Result "0-1"]
[ECO "A20"]
[WhiteElo "2070"]
[BlackElo "2296"]
[Annotator "RC"]
[PlyCount "72"]
[EventDate "2019.01.09"]
[EventType "swiss"]
[EventCountry "ISL"]
[SourceTitle "playchess.com"]
[Source "ChessBase"]
[SourceQuality "1"]
[TimeControl "40/5400+30:900+30"]

1. c4 {[%emt 0:00:00]} e5 {[%emt 0:00:00]} 2. g3 {[%emt 0:00:00]} Nf6 {[%emt 0:00:00]} 3. Bg2 {[%emt 0:00:23]} h6 {[%emt 0:00:00]} 4. Nc3 {[%emt 0:01:42]} Bb4 {[%emt 0:00:00]} 5. Qc2 {[%emt 0:04:27]} O-O {[%emt 0:01:55]} 6. Nf3 {[%emt 0:01:50]} Re8 {[%emt 0:01:14]} 7. Ne4 {[%emt 0:06:44]} Nxe4 {[%emt 0:02:35]} 8. Qxe4 {[%emt 0:00:21]} c6 {[%emt 0:01:39]} 9. a3 {[%emt 0:02:18]} Bf8 {[%emt 0:01:11]} 10. Nh4 {[%emt 0:09:51]} Na6 {[%emt 0:08:38]} 11. d4 {[%emt 0:07:42]} d5 {[%emt 0:04:19]} 12. cxd5 {[%emt 0:01:03]} exd4 {[%emt 0:00:44]} 13. Qxd4 {[%emt 0:01:17]} Nc5 {[%emt 0:02:30]} 14. Qc3 {[%emt 0:03:32]} cxd5 {[%emt 0:02:00]} 15. O-O {[%emt 0:08:32]} d4 {[%emt 0:04:04]} 16. Qc2 {[%emt 0:03:27]} a5 {[%emt 0:10:52]} 17. Nf3 {[%emt 0:04:06]} Be6 {[%emt 0:05:36]} 18. Qd1 {[%emt 0:03:06]} Nb3 {[%emt 0:02:26]} 19. Rb1 {[%emt 0:01:38]} Bf5 {[%emt 0:08:20]} 20. Qxb3 {[%emt 0:00:25]} Bxb1 {[%emt 0:00:09]} 21. Bxh6 {[%emt 0:01:27]} Bf5 {[%emt 0:10:14]} 22. Bf4 {[%emt 0:01:18]} Rc8 {[%emt 0:07:51]} 23. Ng5 {[%emt 0:02:04]} Qf6 {[%emt 0:03:36]} 24. Bd5 {[%emt 0:07:08]} Bg6 {[%emt 0:00:42]} 25. Qf3 {[%emt 0:02:16]} Bd6 {[%emt 0:03:46]} 26. Nxf7 {[%emt 0:06:29]} Bxf7 {[%emt 0:00:10]} 27. Bxd6 {[%emt 0:00:10]} Bxd5 {[%emt 0:02:14]} 28. Qxd5+ {[%emt 0:00:27]} Qe6 {[%emt 0:00:20]} 29. Qxe6+ {[%emt 0:02:07]} Rxe6 {[%emt 0:00:12]} 30. Bf4 {[%emt 0:00:11]} Rxe2 {[%emt 0:00:13]} 31. Rd1 {[%emt 0:00:14]} Rcc2 {[%emt 0:01:00]} 32. Rxd4 {[%emt 0:00:35]} Rxf2 {[%emt 0:00:17]} 33. Rd8+ {[%emt 0:00:20]} Kh7 {[%emt 0:00:28]} 34. Rd7 {[%emt 0:00:28]} Rg2+ {[%emt 0:00:19]} 35. Kf1 {[%emt 0:00:22]} Rcf2+ {[%emt 0:01:11]} 36. Ke1 {[%emt 0:00:08]} Rxb2 {[%emt 0:00:04]} 0-1